bitfinex-derivatives/quotes_SOLF0:USTF0_20260304
["timestamp","ask_amount","ask_price","bid_price","bid_amount"]
[1772589194699,1.3005166,87.408,87.326,15.97535405]
[1772589195096,10.56826192,87.417,87.326,15.97535405]
[1772589195306,1.29272898,87.391,87.326,15.97535405]
[1772589195608,1.29272898,87.41,87.326,15.97535405]
[1772589197402,1.29272898,87.41,87.329,15.97535405]
[1772589197802,10.297,87.401,87.335,15.97535405]
[1772589198406,10.297,87.401,87.337,15.23005659]
[1772589199302,10.297,87.401,87.311,14.16966334]
[1772589199303,10.297,87.401,87.343,15.48054737]
[1772589199699,10.294,87.423,87.354,10.302]
[1772589199904,10.294,87.423,87.355,15.48054737]
[1772589200811,1.23602517,87.427,87.363,15.48054737]
[1772589201503,10.295,87.417,87.363,15.48054737]
[1772589207310,1.23602517,87.427,87.365,10.301]
[1772589207605,1.23602517,87.427,87.366,15.48054737]
[1772589208400,10.294,87.425,87.366,15.48054737]
[1772589210314,0.9568013,87.42,87.366,15.48054737]
[1772589211116,10.295,87.419,87.366,15.48054737]
[1772589211614,10.295,87.411,87.366,15.48054737]
[1772589213217,0.95050512,87.418,87.366,15.48054737]
[1772589213910,10.295,87.415,87.366,15.48054737]
[1772589214508,10.297,87.398,87.337,15.48054737]
[1772589214706,0.95503182,87.397,87.337,15.48054737]
[1772589215320,0.94903563,87.393,87.337,15.48054737]
[1772589217216,10.298,87.386,87.337,15.48054737]
[1772589218814,10.299,87.378,87.337,15.48054737]
[1772589222524,10.3,87.374,87.319,15.48054737]
[1772589223222,11.31317213,87.365,87.319,15.48054737]
[1772589225619,11.31317213,87.365,87.252,27.41901237]
[1772589225620,1.01321269,87.355,87.269,15.48121071]
[1772589225820,1.01321269,87.337,87.254,15.48054737]
[1772589226016,1.00847714,87.333,87.254,15.48054737]
[1772589226221,10.56826192,87.334,87.254,15.48054737]
[1772589226222,1.00995931,87.324,87.254,15.48054737]
[1772589226424,11.31795931,87.303,87.254,15.48054737]
[1772589227217,10.309,87.299,87.215,10.318]
[1772589227423,1.00501248,87.298,87.229,15.48054737]
[1772589228126,1.00501248,87.298,87.231,15.26849256]
[1772589229124,10.309,87.297,87.231,15.26849256]
[1772589229324,1.8777714,87.296,87.231,15.26849256]
[1772589230432,1.82814278,87.291,87.231,15.26849256]
[1772589231627,10.31,87.289,87.231,15.26849256]
[1772589231834,1.82307543,87.288,87.192,15.26127662]
[1772589232931,1.83512772,87.305,87.216,15.26127662]
[1772589233330,10.312,87.27,87.216,15.26127662]
[1772589233633,1.83015997,87.286,87.216,15.26127662]
[1772589233822,1.83015997,87.281,87.216,15.26127662]
[1772589235035,1.71782098,87.278,87.216,15.26127662]
[1772589235930,10.31,87.286,87.218,15.26127662]
[1772589236126,1.7172793,87.295,87.218,15.26127662]
[1772589236433,1.7172793,87.295,87.221,10.318]
[1772589236632,1.7172793,87.295,87.222,15.26127662]
[1772589237231,1.7172793,87.295,87.226,15.26127662]
[1772589238231,10.308,87.304,87.226,15.26127662]
[1772589238930,1.8976818,87.311,87.241,15.26127662]
[1772589239531,1.89316068,87.309,87.182,15.26127662]
[1772589239938,1.89316068,87.309,87.228,15.26127662]
[1772589240343,1.78217521,87.354,87.228,15.26127662]
[1772589240535,1.78217521,87.354,87.192,160.558]
[1772589240536,1.78217521,87.318,87.246,15.26127662]
[1772589242038,1.78217521,87.318,87.258,15.26127662]
[1772589242836,10.307,87.315,87.258,15.26127662]
[1772589244037,1.78217521,87.318,87.258,15.26127662]
[1772589245439,1.78217521,87.318,87.26,15.26127662]
[1772589245938,1.77939686,87.379,87.282,15.26127662]
[1772589246737,1.867517,87.352,87.282,15.26127662]
[1772589247640,11.45,87.407,87.285,15.26127662]
[1772589247641,12.16606096,87.349,87.285,15.26127662]
[1772589248437,12.16606096,87.349,87.235,20.633]
[1772589248438,1.86306096,87.349,87.29,15.26127662]
[1772589248634,10.301,87.363,87.29,15.26127662]
[1772589248843,1.52746716,87.38,87.29,15.26127662]
[1772589249737,1.52746716,87.38,87.315,15.26127662]
[1772589250042,10.299,87.384,87.315,15.26127662]
[1772589251344,10.299,87.384,87.318,15.26127662]
[1772589251947,11.82013276,87.395,87.321,15.26127662]
[1772589252141,1.52313276,87.395,87.321,15.26127662]
[1772589252538,1.38139072,87.384,87.321,15.26127662]
[1772589253340,10.3,87.374,87.321,15.26127662]
[1772589254042,1.38139072,87.384,87.321,15.26127662]
[1772589254947,1.38139072,87.384,87.323,15.26127662]
[1772589257445,10.297,87.397,87.324,10.306]
[1772589257743,8.29385381,87.431,87.263,20.626]
[1772589257744,1.54343936,87.387,87.325,15.26127662]
[1772589258342,1.66070356,87.386,87.325,15.26127662]
[1772589259449,10.298,87.39,87.327,14.94243963]
[1772589259748,1.65214117,87.415,87.327,14.94243963]
[1772589259948,10.296,87.402,87.343,14.94243963]
[1772589260152,11.94984794,87.402,87.343,14.94243963]
[1772589260343,1.65384794,87.402,87.343,14.94243963]
[1772589260543,10.298,87.392,87.343,14.94243963]
[1772589261452,1.65384794,87.402,87.343,14.94243963]
[1772589261453,1.65038585,87.402,87.343,14.94243963]
[1772589263147,11.96339676,87.392,87.343,14.94243963]
[1772589263854,10.298,87.388,87.343,14.94243963]
[1772589269359,10.299,87.381,87.343,14.94243963]
[1772589270658,1.56150709,87.378,87.325,14.94243963]
[1772589272258,10.299,87.377,87.325,14.94243963]
[1772589272661,1.09750219,87.376,87.308,15.1282144]
[1772589273154,10.302,87.352,87.308,15.1282144]
[1772589274756,0.82825783,87.401,87.308,15.1282144]
[1772589276364,10.301,87.368,87.308,15.1282144]
[1772589281472,10.301,87.363,87.308,15.1282144]
[1772589283062,0.51973951,87.39,87.319,15.40357929]
[1772589284162,10.3,87.372,87.319,15.40357929]
[1772589284366,0.51973951,87.39,87.319,15.40357929]
[1772589285364,10.299,87.381,87.319,15.40357929]
[1772589287365,0.51973951,87.39,87.323,15.47141592]
[1772589288263,10.298,87.389,87.323,15.47141592]
[1772589288662,10.62096717,87.389,87.323,15.47141592]
[1772589288874,0.32296717,87.388,87.325,15.49831989]
[1772589289868,10.299,87.382,87.326,10.305]
[1772589290069,10.299,87.382,87.327,15.49840959]
[1772589290473,0.59799613,87.395,87.327,15.49840959]
[1772589291376,10.298,87.391,87.327,15.49840959]
[1772589291873,8.42848049,87.397,87.327,15.49840959]
[1772589292170,8.42848049,87.403,87.327,15.49840959]
[1772589292377,10.297,87.402,87.34,15.34520414]
[1772589292571,18.72548049,87.402,87.34,15.34520414]
[1772589292877,8.42848049,87.401,87.345,10.303]
[1772589293073,8.42848049,87.401,87.346,15.34520414]
[1772589293380,10.297,87.399,87.346,15.34520414]
[1772589294079,0.59512708,87.419,87.347,15.34531166]
[1772589294375,0.59512708,87.411,87.304,15.35583578]
[1772589294574,160.13,87.427,87.304,15.35583578]
[1772589294575,0.59512708,87.393,87.304,15.35583578]
[1772589294770,0.59512708,87.372,87.306,15.35583578]
[1772589295277,10.301,87.364,87.306,15.35583578]
[1772589295575,0.59285831,87.362,87.263,15.35593786]
[1772589295780,0.59285831,87.361,87.263,15.35593786]
[1772589296379,10.304,87.341,87.27,15.26078976]
[1772589296977,0.78133358,87.347,87.27,15.26078976]
[1772589296978,10.305,87.329,87.27,15.26078976]
[1772589297571,10.304,87.341,87.272,15.26089432]
[1772589298277,10.78502731,87.336,87.275,15.40896233]
[1772589298981,10.303,87.348,87.275,15.40896233]
[1772589299176,0.47887265,87.347,87.275,15.40896233]
[1772589299577,0.47887265,87.347,87.214,160.518]
[1772589299578,10.53889016,87.365,87.278,15.40905624]
[1772589299780,0.47887265,87.373,87.278,15.40905624]
[1772589300278,0.41303603,87.371,87.284,15.44098762]
[1772589300976,21.1125129,87.404,87.232,160.485]
[1772589300977,0.41303603,87.363,87.287,15.44098762]
[1772589301578,0.41088191,87.372,87.302,15.44107964]
[1772589301778,0.41088191,87.364,87.286,15.44107964]
[1772589302679,0.41088191,87.364,87.288,15.46594353]
[1772589303278,10.301,87.363,87.29,15.46603105]
[1772589304282,10.302,87.355,87.292,15.42947158]
[1772589305985,10.53889016,87.389,87.323,14.81998128]
[1772589306179,0.42634345,87.398,87.323,14.81998128]
[1772589307289,10.298,87.391,87.323,14.81998128]
[1772589308482,19.10598154,87.391,87.325,14.81998128]
[1772589308787,8.80798154,87.391,87.325,14.81998128]
[1772589309891,10.298,87.39,87.327,14.81998128]
[1772589312192,10.298,87.39,87.33,10.305]
[1772589312389,10.297,87.401,87.331,14.81998128]
[1772589313192,10.297,87.401,87.335,10.304]
[1772589313394,10.297,87.401,87.336,14.81998128]
[1772589314394,10.298,87.39,87.336,14.81998128]
[1772589314592,8.90039571,87.401,87.336,14.81998128]
[1772589316288,19.19739571,87.401,87.336,14.81998128]
[1772589317390,8.91588563,87.39,87.317,14.81998128]
[1772589318595,8.91588563,87.39,87.317,14.24806904]
[1772589318788,10.18193315,87.386,87.317,14.24806904]
[1772589320095,10.20045676,87.398,87.3,14.12495671]
[1772589320396,10.30406956,87.395,87.289,14.12495671]
[1772589320695,10.30406956,87.376,87.307,15.13653939]
[1772589321199,10.30827204,87.374,87.31,15.13653939]
[1772589321399,10.30877021,87.39,87.31,15.13653939]
[1772589321797,20.60677021,87.389,87.327,15.13653939]
[1772589322400,20.60677021,87.389,87.332,10.305]
[1772589322701,10.30877021,87.389,87.333,15.13653939]
[1772589323194,10.297,87.399,87.335,15.13653939]
[1772589323393,10.20351561,87.404,87.335,15.13653939]
[1772589325401,10.14442577,87.432,87.342,15.13653939]
[1772589325998,10.14442577,87.419,87.358,15.13653939]
[1772589327301,10.14297724,87.416,87.358,15.13653939]
[1772589328403,10.295,87.414,87.358,15.13653939]
[1772589328903,20.44618904,87.414,87.358,15.13653939]
[1772589330409,10.14283199,87.435,87.362,15.13653939]
[1772589331498,10.14283199,87.435,87.393,15.13653939]
[1772589331710,10.14283199,87.435,87.34,15.13653939]
[1772589332204,10.15048277,87.455,87.34,15.13653939]
[1772589332605,10.15048277,87.455,87.341,15.13653939]
[1772589332907,10.15048277,87.455,87.344,15.13653939]
[1772589333302,10.15048277,87.455,87.343,14.12495671]
[1772589333303,10.1321026,87.444,87.373,15.13653939]
[1772589334200,10.1321026,87.444,87.372,10.3]
[1772589334201,20.42759829,87.442,87.378,15.13653939]
[1772589334796,10.13559829,87.442,87.38,10.299]
[1772589335000,192.15708593,87.47,87.381,15.13653939]
[1772589335305,10.11815993,87.469,87.381,15.13653939]
[1772589335501,10.11815993,87.469,87.357,14.12495671]
[1772589335502,10.288,87.475,87.41,15.13653939]
[1772589335705,10.11815993,87.485,87.41,15.13653939]
[1772589336298,10.11815993,87.485,87.418,15.13653939]
[1772589336697,10.06758408,87.513,87.418,15.13653939]
[1772589337510,10.07135097,87.509,87.449,15.13653939]
[1772589338207,10.07135097,87.509,87.451,10.291]
[1772589338409,10.07135097,87.509,87.452,15.13653939]
[1772589340016,10.07135097,87.509,87.391,160.193]
[1772589340017,10.17240002,87.533,87.454,15.13653939]
[1772589340807,10.00386007,87.52,87.454,15.13653939]
[1772589342309,10.25090241,87.517,87.454,15.13653939]
[1772589342510,10.25090241,87.553,87.454,15.13653939]
[1772589342914,10.25090241,87.532,87.456,15.13653939]
[1772589343518,10.25420945,87.524,87.456,15.13653939]
[1772589344108,10.25713068,87.516,87.456,15.13653939]
[1772589347116,10.283,87.515,87.456,15.13653939]
[1772589347312,10.283,87.515,87.37,20.601]
[1772589347313,10.30947315,87.514,87.432,15.13653939]
[1772589348624,10.22152179,87.496,87.432,15.13653939]
[1772589350323,10.22152179,87.496,87.435,10.292]
[1772589350513,10.22152179,87.496,87.436,15.01012226]
[1772589353220,10.21845557,87.532,87.463,15.01012226]
[1772589353816,10.21845557,87.528,87.463,15.01012226]
[1772589355329,10.18299504,87.524,87.463,15.01012226]
[1772589355629,10.18299504,87.524,87.379,15.01012226]
[1772589356221,10.18587457,87.5,87.416,15.01012226]
[1772589356730,10.19536882,87.472,87.416,15.01012226]
[1772589357430,10.29,87.456,87.388,15.01012226]
[1772589357727,10.19854787,87.457,87.388,15.01012226]
[1772589358432,10.26481126,87.466,87.4,15.01012226]
[1772589358827,10.289,87.464,87.403,10.296]
[1772589359035,10.26481126,87.463,87.4,15.01012226]
[1772589360334,10.29,87.459,87.4,15.01012226]
[1772589361026,10.23812947,87.479,87.403,15.01012226]
[1772589362230,10.288,87.477,87.415,15.01012226]
[1772589362639,10.17201295,87.526,87.415,15.01012226]
[1772589362937,10.17201295,87.526,87.452,15.01012226]
[1772589363437,10.283,87.513,87.452,15.01012226]
[1772589363632,10.17507411,87.512,87.452,15.01012226]
[1772589364028,10.17507411,87.5,87.437,15.01012226]
[1772589365625,10.284,87.504,87.441,15.01012226]
[1772589367434,10.59590253,87.513,87.443,15.01012226]
[1772589368838,10.59590253,87.513,87.456,15.01012226]
[1772589370341,10.59590253,87.513,87.457,15.01012226]
[1772589371245,10.59590253,87.513,87.398,15.01012226]
[1772589371939,10.59590253,87.513,87.446,15.01012226]
[1772589373246,10.5042133,87.512,87.45,15.01012226]
[1772589375035,10.61175198,87.508,87.45,15.01012226]
[1772589375640,10.61175198,87.508,87.389,21.17031179]
[1772589375641,10.61202543,87.492,87.434,15.01012226]
[1772589375944,10.61202543,87.507,87.434,15.01012226]
[1772589376647,10.60641551,87.504,87.434,15.01012226]
[1772589377441,10.6088185,87.501,87.436,15.01012226]
[1772589378146,10.6088185,87.501,87.439,15.51196557]
[1772589378941,10.285,87.5,87.439,15.51196557]
[1772589379141,10.70984464,87.499,87.442,15.51196557]
[1772589379345,10.71488399,87.516,87.442,15.51196557]
[1772589380348,10.71488399,87.516,87.398,160.18]
[1772589380349,10.71488399,87.516,87.453,15.54403227]
[1772589381040,10.283,87.515,87.453,15.54403227]
[1772589381238,11.00676929,87.514,87.453,15.54403227]
[1772589381449,11.00704561,87.511,87.417,15.54403227]
[1772589382246,11.00909814,87.5,87.432,15.54403227]
[1772589383247,10.77951027,87.497,87.435,15.54403227]
[1772589384052,10.77976897,87.496,87.437,15.54403227]
[1772589385344,10.286,87.493,87.437,15.54403227]
[1772589386149,21.14094289,87.493,87.437,15.54403227]
[1772589386644,10.80101833,87.49,87.437,15.54403227]
[1772589387049,10.80101833,87.515,87.437,15.54403227]
[1772589387843,10.80316164,87.506,87.448,15.54403227]
[1772589388254,10.91809405,87.491,87.43,15.54403227]
[1772589389351,10.287,87.484,87.43,15.54403227]
[1772589390250,10.91809405,87.491,87.432,15.54403227]
[1772589391448,10.286,87.49,87.434,15.54403227]
[1772589391850,10.86526527,87.489,87.434,15.54403227]
[1772589394251,10.86526527,87.489,87.436,15.54403227]
[1772589395350,10.86526527,87.489,87.438,15.54403227]
[1772589395749,11.58914129,87.508,87.44,15.54403227]
[1772589396555,11.61235704,87.483,87.44,15.54403227]
[1772589396949,11.61235704,87.483,87.427,10.293]
[1772589396950,10.287,87.482,87.427,10.293]
[1772589397155,11.61235704,87.481,87.425,15.54403227]
[1772589398351,11.47546705,87.479,87.425,15.54403227]
[1772589399349,11.47744335,87.476,87.425,15.54403227]
[1772589399657,11.47744335,87.476,87.387,15.54403227]
[1772589399858,11.47744335,87.446,87.387,15.54403227]
[1772589400655,11.47744335,87.446,87.279,35.14422613]
[1772589400656,11.44861316,87.435,87.372,15.54403227]
[1772589401060,10.293,87.432,87.372,15.54403227]
[1772589401363,11.4503336,87.431,87.372,15.54403227]
[1772589402260,10.293,87.43,87.372,15.54403227]
[1772589402460,11.27099055,87.429,87.372,15.54403227]
[1772589403356,10.294,87.427,87.372,15.54403227]
[1772589403660,21.56692697,87.427,87.372,15.54403227]
[1772589405060,11.27292697,87.427,87.372,15.54403227]
[1772589406054,10.53889016,87.468,87.375,15.54403227]
[1772589406055,11.3129717,87.437,87.375,15.54403227]
[1772589406656,11.31645003,87.435,87.377,15.54403227]
[1772589408462,11.33521118,87.431,87.377,15.54403227]
[1772589409261,11.33521118,87.431,87.304,160.352]
[1772589409262,11.32600025,87.427,87.345,15.35959872]
[1772589410469,11.42952786,87.399,87.345,15.35959872]
[1772589412263,10.298,87.392,87.345,15.35959872]
[1772589412468,11.33964003,87.391,87.322,15.35959872]
[1772589413262,11.3411365,87.376,87.322,15.35959872]
[1772589413760,11.3411365,87.376,87.263,15.35959872]
[1772589415269,11.37323304,87.375,87.307,15.35959872]
[1772589416172,11.37495315,87.367,87.307,15.35959872]
[1772589417972,11.36438917,87.382,87.307,15.35959872]
[1772589419375,11.37775055,87.378,87.313,15.35959872]
[1772589420278,11.37775055,87.378,87.317,15.35959872]
[1772589420973,160.111,87.437,87.317,15.35959872]
[1772589420974,11.30749235,87.376,87.317,15.35959872]
[1772589421173,11.30749235,87.376,87.263,15.35959872]
[1772589421774,11.30911279,87.36,87.288,15.35959872]
[1772589422173,11.30911279,87.36,87.273,15.35959872]
[1772589422773,11.14821816,87.403,87.275,15.35959872]
[1772589423175,10.299,87.377,87.304,10.308]
[1772589423385,11.14966001,87.376,87.305,15.35959872]
[1772589424276,11.14966001,87.376,87.312,15.35959872]
[1772589425284,10.301,87.363,87.312,15.35959872]
[1772589426885,10.76089007,87.36,87.312,15.35959872]
[1772589427586,20.59,87.415,87.295,15.35959872]
[1772589427587,10.76240877,87.357,87.295,15.35959872]
[1772589427780,10.76240877,87.357,87.28,15.35959872]
[1772589428181,10.76405322,87.345,87.282,15.35959872]
[1772589430383,10.303,87.343,87.282,15.35959872]
[1772589431786,10.85863716,87.362,87.285,15.35959872]
[1772589431983,10.85863716,87.396,87.285,15.35959872]
[1772589433288,10.299,87.384,87.319,15.35959872]
[1772589433881,10.299,87.384,87.267,20.625]
[1772589433882,10.3,87.375,87.321,15.35959872]
[1772589434691,10.85741815,87.384,87.323,15.35959872]
[1772589435293,10.85741815,87.384,87.326,15.35959872]
[1772589435793,10.69541184,87.402,87.328,15.35959872]
[1772589436693,10.69541184,87.402,87.339,15.35959872]
[1772589437786,10.69541184,87.402,87.343,15.35959872]
[1772589438289,10.69541184,87.402,87.346,10.303]
[1772589441294,11.00406295,87.399,87.343,15.35959872]
[1772589443190,11.00855253,87.43,87.358,15.58934816]
[1772589443991,11.00855253,87.43,87.369,15.58934816]
[1772589444696,21.07842617,87.421,87.369,15.58934816]
[1772589444892,10.78442617,87.42,87.369,15.58934816]
[1772589445288,10.295,87.419,87.369,15.58934816]
[1772589445796,10.295,87.419,87.301,283.59709104]
[1772589445797,10.78555065,87.418,87.353,15.58934816]
[1772589445999,10.78555065,87.405,87.338,15.58934816]
[1772589446895,10.298,87.39,87.338,15.58934816]
[1772589447095,10.21946956,87.391,87.338,15.58934816]
[1772589447399,10.298,87.39,87.338,15.58934816]
[1772589451204,10.21946956,87.391,87.338,15.58934816]
[1772589451597,10.297,87.4,87.34,10.304]
[1772589451800,10.29050691,87.406,87.341,15.58934816]
[1772589453202,10.297,87.396,87.341,15.58934816]
[1772589455506,9.79376591,87.392,87.341,15.58934816]
[1772589456314,10.298,87.391,87.341,15.58934816]
[1772589457711,10.00878216,87.381,87.323,15.58934816]
[1772589458315,10.09996849,87.361,87.302,15.58934816]
[1772589459219,10.302,87.359,87.302,15.58934816]
[1772589461521,10.302,87.359,87.304,15.58934816]
[1772589462323,10.09996849,87.361,87.28,14.12495671]
[1772589462324,10.09996849,87.361,87.307,15.58934816]
[1772589463127,10.09996849,87.361,87.235,28.24991343]
[1772589463128,10.36958569,87.349,87.27,15.58934816]
[1772589463628,10.37046092,87.315,87.253,15.58934816]
[1772589464717,10.308,87.304,87.253,15.58934816]
[1772589464923,10.37046092,87.315,87.253,15.58934816]
[1772589466226,10.46740579,87.314,87.253,15.58934816]
[1772589467923,20.64192902,87.301,87.253,15.58934816]
[1772589468227,10.34556229,87.315,87.253,15.58934816]
[1772589471431,10.307,87.314,87.253,15.58934816]
[1772589471631,10.14364442,87.313,87.253,15.58934816]
[1772589473229,10.16552832,87.312,87.253,15.58934816]
[1772589473829,10.16559339,87.311,87.253,15.58934816]
[1772589474330,10.16623668,87.309,87.237,14.85277132]
[1772589475229,10.309,87.299,87.237,14.85277132]
[1772589475435,20.48449705,87.299,87.237,14.85277132]
[1772589476429,10.31,87.288,87.237,14.85277132]
[1772589476828,10.17595195,87.298,87.237,14.85277132]
[1772589477133,10.17595195,87.298,87.239,14.85277132]
[1772589478034,10.309,87.297,87.239,14.85277132]
[1772589479634,10.305,87.329,87.239,14.85277132]
[1772589479834,20.599,87.38,87.239,14.85277132]
[1772589479835,10.10078697,87.328,87.239,14.85277132]
[1772589480735,10.4878045,87.309,87.242,14.85277132]
[1772589481731,10.48844711,87.295,87.242,14.85277132]
[1772589484242,10.23546698,87.292,87.242,14.85277132]
[1772589487637,10.38982662,87.31,87.242,14.85277132]
[1772589487835,10.38982662,87.324,87.242,14.85277132]
[1772589488942,20.66865073,87.314,87.254,14.85277132]
[1772589491044,11.44891371,87.362,87.254,14.85277132]
[1772589491045,10.53322513,87.31,87.254,14.85277132]
[1772589492343,10.308,87.304,87.254,14.85277132]
[1772589497046,20.85901148,87.304,87.254,14.85277132]
[1772589498544,10.55101148,87.304,87.254,14.85277132]
[1772589498744,10.58274332,87.318,87.254,14.85277132]
[1772589498941,10.58274332,87.314,87.256,15.16754381]
[1772589500051,21.31178742,87.368,87.259,14.6993386]
[1772589500052,10.58159511,87.312,87.259,14.6993386]
[1772589501050,10.58159511,87.312,87.261,14.6993386]
[1772589502443,10.58441354,87.308,87.261,14.6993386]
[1772589503450,10.306,87.32,87.261,14.6993386]
[1772589503752,10.58509223,87.319,87.261,14.6993386]
[1772589504558,10.58509223,87.319,87.263,10.313]
[1772589504758,10.58509223,87.319,87.264,14.6993386]
[1772589506463,10.58509223,87.319,87.268,14.6993386]
[1772589506958,10.305,87.33,87.27,14.6993386]
[1772589507258,10.79637191,87.331,87.27,14.6993386]
[1772589507856,10.304,87.34,87.282,14.6993386]
[1772589508865,10.60910187,87.355,87.302,14.6993386]
[1772589509066,10.77345463,87.36,87.302,14.6993386]
[1772589509956,10.77385422,87.347,87.302,14.6993386]
[1772589513462,10.77385422,87.347,87.289,14.6993386]
[1772589515361,10.77385422,87.347,87.291,14.6993386]
[1772589518566,10.77385422,87.347,87.294,10.309]
[1772589518767,10.23418319,87.357,87.295,14.6993386]
[1772589519266,10.23447953,87.355,87.297,14.6993386]
[1772589520973,10.14674729,87.343,87.277,14.6993386]
[1772589521571,10.14715916,87.314,87.26,14.6993386]
[1772589522671,10.18869842,87.302,87.242,14.6993386]
[1772589523866,10.60910187,87.335,87.242,14.6993386]
[1772589524072,14.10857062,87.347,87.193,280.88917279]
[1772589524073,10.18939527,87.342,87.257,14.6993386]
[1772589524962,10.18939527,87.342,87.292,14.6993386]
[1772589525373,10.303,87.349,87.292,14.6993386]
[1772589525973,10.303,87.349,87.26,14.12495671]
[1772589525974,10.45539358,87.358,87.295,14.6993386]
[1772589526876,10.41489622,87.353,87.277,14.6993386]
[1772589527473,10.41525104,87.345,87.277,14.6993386]
[1772589528268,10.41525104,87.345,87.257,14.12495671]
[1772589528269,10.41796197,87.362,87.289,15.84406712]
[1772589529071,10.41796197,87.362,87.296,15.84406712]
[1772589530269,10.41796197,87.362,87.303,15.84406712]
[1772589530973,10.41796197,87.362,87.264,14.12495671]
[1772589531175,21.31178742,87.4,86.949,193.19208882]
[1772589531176,160.284,87.342,87.238,17.62696961]
[1772589531384,10.66639909,87.323,87.238,17.62696961]
[1772589531578,10.307,87.309,87.238,17.62696961]
[1772589531775,10.66639909,87.324,87.238,17.62696961]
[1772589531973,10.66639909,87.329,87.238,17.62696961]
[1772589532172,14.10857062,87.342,87.24,17.62695218]
[1772589532173,10.307,87.31,87.24,17.62695218]
[1772589535574,10.66639909,87.326,87.24,17.62695218]
[1772589535783,10.66639909,87.323,87.24,17.62695218]
[1772589536385,10.66639909,87.324,87.24,17.62695218]
[1772589537083,10.308,87.301,87.24,17.62695218]
[1772589537684,10.307,87.312,87.24,17.62695218]
[1772589537881,10.66639909,87.331,87.24,17.62695218]
[1772589539284,10.308,87.301,87.24,17.62695218]
[1772589542686,10.307,87.312,87.24,17.62695218]
[1772589542887,1.99432077,87.324,87.24,17.62695218]
[1772589544492,10.308,87.301,87.24,17.62695218]
[1772589544888,10.31,87.29,87.24,17.62695218]
[1772589546189,10.308,87.301,87.24,17.62695218]
[1772589547189,10.309,87.292,87.24,17.62695218]
[1772589547393,1.99432077,87.324,87.24,17.62695218]
[1772589548295,10.308,87.302,87.24,17.62695218]
[1772589549294,10.308,87.302,87.233,10.316]
[1772589549295,1.99432077,87.324,87.222,16.92734882]
[1772589550186,10.309,87.294,87.222,16.92734882]
[1772589550391,10.309,87.294,87.225,16.92481842]
[1772589551295,10.309,87.294,87.227,16.92481842]
[1772589552195,10.309,87.294,87.229,10.317]
[1772589552394,10.309,87.294,87.23,16.9241202]
[1772589555193,10.31,87.285,87.23,16.9241202]
[1772589557894,10.308,87.304,87.242,16.89964303]
[1772589558492,8.65074714,87.311,87.242,16.89964303]
[1772589558690,10.66639909,87.311,87.242,16.89964303]
[1772589559898,10.66639909,87.31,87.242,16.89964303]
[1772589560298,10.311,87.278,87.229,16.89753388]
[1772589561900,10.31,87.287,87.229,16.89753388]
[1772589562105,8.65074714,87.301,87.229,16.89753388]
[1772589562293,8.65074714,87.303,87.229,16.89753388]
[1772589562500,8.65074714,87.306,87.229,16.89753388]
[1772589562795,10.66639909,87.312,87.229,16.89753388]
[1772589563301,10.309,87.297,87.231,16.97911959]
[1772589564206,10.309,87.297,87.234,10.316]
[1772589564502,10.309,87.297,87.235,17.04278857]
[1772589566195,10.309,87.297,87.237,17.0422344]
[1772589566907,10.309,87.297,87.238,10.316]
[1772589567107,10.309,87.297,87.239,17.07511857]
[1772589567710,18.95974714,87.297,87.239,17.07511857]
[1772589568004,8.65074714,87.296,87.239,17.07511857]
[1772589568901,10.309,87.297,87.239,17.07511857]
[1772589570201,10.309,87.297,87.242,17.11716054]
[1772589571606,1.99432077,87.324,87.242,17.11716054]
[1772589571607,10.31,87.286,87.242,17.11716054]
[1772589573003,10.309,87.296,87.242,17.11716054]
[1772589573200,18.95974714,87.296,87.242,17.11716054]
[1772589573399,8.65074714,87.295,87.242,17.11716054]
[1772589573602,10.309,87.293,87.242,17.11716054]
[1772589574208,8.65074714,87.292,87.242,17.11716054]
[1772589574413,10.31,87.289,87.242,17.11716054]
[1772589574605,8.65074714,87.288,87.242,17.11716054]
[1772589574806,8.65074714,87.287,87.242,17.11716054]
[1772589575106,8.65074714,87.286,87.242,17.11716054]
[1772589575302,19.31714623,87.285,87.242,17.11716054]
[1772589575511,8.65074714,87.284,87.242,17.11716054]
[1772589575809,8.65074714,87.283,87.242,17.11716054]
[1772589576108,8.65074714,87.282,87.242,17.11716054]
[1772589576310,8.65074714,87.281,87.242,17.11716054]
[1772589576510,8.65074714,87.28,87.242,17.11716054]
[1772589576707,8.65074714,87.279,87.242,17.11716054]
[1772589577007,8.65074714,87.278,87.242,17.11716054]
[1772589577206,8.65074714,87.277,87.242,17.11716054]
[1772589577410,8.65074714,87.276,87.242,17.11716054]
[1772589577611,8.65074714,87.275,87.242,17.11716054]